{"text_format":"1","workbook":"xlsx","n_sheets":2,"sheets":["Sheet1","Розписання"],"not_rendered":{"charts":0,"images":0,"macros":1,"external_links":0,"defined_names":1,"comments":0,"pivot_tables":0},"unopened":[],"bounds":{"document_bytes":16777216,"sheet_cells":100000,"rows_first":2000,"rows_last":500,"rows_between":2000,"halvings":0,"cell_chars":16384,"cell_head_chars":4096},"cells_cut":0,"cells_raw":0,"read":"whole","date_system":"1900"}

{"sheet":"Sheet1","index":0,"n_rows":101,"n_cols":2,"rows_kept":101,"cut":false,"hidden":false,"merged":[]}
["Ціна Вхідна акція"]
["Назва товару"]
["Код товару",{"$f":"SUM(C3:XFD3)","v":0}]
["Всього замовлення",0]
["Замовлення магазин",0]
["Склад\\\\Сумма",{"$f":"SUM(B7:B101)","v":0}]
["1101 Вопак Торговий зал",0]
["1102 Вопак Торговий зал",0]
["1103 Вопак Торговий зал",0]
["1105 Вопак Торговий зал",0]
["1210 Вопак Торговий зал",0]
["1304 Вопак Торговий зал",0]
["1306 Вопак Торговий зал",0]
["1309 Вопак Торговий зал",0]
["1311 Вопак Торговий зал",0]
["1407 Вопак Торговий зал",0]
["1701 Пакко Торговий зал",0]
["1702 Пакко Торговий зал",0]
["1805 Пакко Торговий зал",0]
["1808 Пакко Торговий зал",0]
["2201 Вопак Торговий зал",0]
["2202 Вопак Торговий зал",0]
["2203 Вопак Торговий зал",0]
["2206 Вопак Торговий зал",0]
["2207 Вопак Торговий зал",0]
["2211 Вопак Торговий зал",0]
["2212 Вопак Торговий зал",0]
["2314 Вопак Торговий зал",0]
["2315 Вопак Торговий зал",0]
["2316 Вопак Торговий зал",0]
["2404 Вопак Торговий зал",0]
["2405 Вопак Торговий зал",0]
["2704 Пакко Торговий зал",0]
["3202 Вопак Торговий зал",0]
["3203 Вопак Торговий зал",{"$f":"SUM(C35:XFD35)","v":0}]
["3204 Вопак Торговий зал",0]
["3208 Вопак Торговий зал",0]
["3209 Вопак Торговий зал",0]
["3305 Вопак Торговий зал",0]
["3401 Вопак Торговий зал",0]
["3406 Вопак Торговий зал",0]
["3407 Вопак Торговий зал",0]
["4106 Вопак Торговий зал",0]
["4107 Вопак Торговий зал",0]
["4109 Вопак Торговий зал",0]
["4110 Вопак Торговий зал",0]
["4201 Вопак Торговий зал",0]
["4204 Вопак Торговий зал",0]
["4205 Вопак Торговий зал",0]
["4302 Вопак Торговий зал",0]
["4303 Вопак Торговий зал",0]
["4308 Вопак Торговий зал",0]
["4312 Вопак Торговий зал",0]
["4411 Вопак Торговий зал",0]
["4710 Пакко Торговий зал",0]
["4719 Пакко Торговий зал",0]
["4812 Пакко Торговий зал",0]
["5101 Вопак Торговий зал",0]
["5204 Вопак Торговий зал",0]
["5207 Вопак Торговий зал",0]
["5208 Вопак Торговий зал",0]
["5209 Вопак Торговий зал",0]
["5210 Вопак Торговий зал",0]
["5303 Вопак Торговий зал",0]
["5305 Вопак Торговий зал",0]
["5306 Вопак Торговий зал",0]
["5402 Вопак Торговий зал",{"$f":"SUM(C67:XFD67)","v":0}]
["5412 Вопак Торговий зал",0]
["5414 Вопак Торговий зал",0]
["6105 Вопак Торговий зал",0]
["6106 Вопак Торговий зал",0]
["6112 Вопак Торговий зал",0]
["6116 Вопак Торговий зал",0]
["6203 Вопак Торговий зал",0]
["6204 Вопак Торговий зал",0]
["6209 Вопак Торговий зал",0]
["6211 Вопак Торговий зал",0]
["6220 Вопак Торговий зал",0]
["6307 Вопак Торговий зал",0]
["6310 Вопак Торговий зал",0]
["6314 Вопак Торговий зал",0]
["6401 Вопак Торговий зал",0]
["6408 Вопак Торговий зал",0]
["6417 Вопак Торговий зал",0]
["6711 Пакко Торговий зал",0]
["6715 Пакко Торговий зал",0]
["6716 Пакко Торговий зал",0]
["6717 Пакко Торговий зал",0]
["6820 Пакко Торговий зал",0]
["7202 Вопак Торговий зал",0]
["7203 Вопак Торговий зал",0]
["7205 Вопак Торговий зал",0]
["7301 Вопак Торговий зал",0]
["7404 Вопак Торговий зал",0]
["7718 Пакко Торговий зал",0]
["8201 Вопак Торговий зал",0]
["8202 Вопак Торговий зал",0]
["8703 Пакко Торговий зал",0]
["9201 Вопак Торговий зал",{"$f":"SUM(C99:XFD99)","v":0}]
["9302 Вопак Торговий зал",0]
["9809 Пакко Торговий зал",0]

{"sheet":"Розписання","index":1,"n_rows":0,"n_cols":0,"rows_kept":0,"cut":false,"hidden":false,"merged":[]}